[Event "Titled Tuesday Blitz March 21 Early 2023"]
[White "Pranav, V"]
[Black "Howell, David W L"]
[WhiteFideId "25060783"]
[BlackFideId "410608"]
[WhiteElo "2500"]
[BlackElo "2567"]
[Result "1/2-1/2"]
[Round "08"]
[TimeControl "180+2"]
[Date "2023.03.21"]
[WhiteClock "0:00:03"]
[BlackClock "0:00:04"]

1. e4 {[%clk 0:03:00]}  c6 {[%clk 0:02:49]} 2. d4 {[%clk 0:02:56]}  d5 {[%clk 0:02:49]} 3. e5 {[%clk 0:02:56]}  Bf5 {[%clk 0:02:49]} 4. Nf3 {[%clk 0:02:57]}  e6 {[%clk 0:02:49]} 5. Be2 {[%clk 0:02:57]}  Ne7 {[%clk 0:02:50]} 6. c3 {[%clk 0:02:56]}  Nd7 {[%clk 0:02:49]} 7. O-O {[%clk 0:02:56]}  Ng6 {[%clk 0:02:49]} 8. Re1 {[%clk 0:02:54]}  f6 {[%clk 0:02:49]} 9. exf6 {[%clk 0:02:49]}  Qxf6 {[%clk 0:02:50]} 10. Bg5 {[%clk 0:02:32]}  Qf7 {[%clk 0:02:50]} 11. Nbd2 {[%clk 0:02:33]}  Bd6 {[%clk 0:02:38]} 12. Nf1 {[%clk 0:02:31]}  h6 {[%clk 0:02:37]} 13. Be3 {[%clk 0:02:29]}  O-O {[%clk 0:02:34]} 14. Ng3 {[%clk 0:02:14]}  Rae8 {[%clk 0:02:34]} 15. Nxf5 {[%clk 0:01:54]}  exf5 {[%clk 0:02:31]} 16. Bd3 {[%clk 0:01:53]}  Nf4 {[%clk 0:02:16]} 17. Bf1 {[%clk 0:01:33]}  g5 {[%clk 0:01:58]} 18. Qc2 {[%clk 0:01:12]}  Re6 {[%clk 0:01:41]} 19. c4 {[%clk 0:01:07]}  Ng6 {[%clk 0:01:18]} 20. cxd5 {[%clk 0:00:58]}  cxd5 {[%clk 0:01:19]} 21. Qb3 {[%clk 0:00:51]}  Nf6 {[%clk 0:01:11]} 22. Ne5 {[%clk 0:00:48]}  Nxe5 {[%clk 0:00:57]} 23. dxe5 {[%clk 0:00:49]}  Bxe5 {[%clk 0:00:58]} 24. Rad1 {[%clk 0:00:46]}  Bxh2+ {[%clk 0:00:27]} 25. Kxh2 {[%clk 0:00:23]}  Qh5+ {[%clk 0:00:27]} 26. Kg1 {[%clk 0:00:23]}  Ng4 {[%clk 0:00:28]} 27. Bc4 {[%clk 0:00:11]}  dxc4 {[%clk 0:00:19]} 28. Qxc4 {[%clk 0:00:12]}  Re8 {[%clk 0:00:16]} 29. Rd8 {[%clk 0:00:04]}  Rxd8 {[%clk 0:00:13]} 30. Qxe6+ {[%clk 0:00:05]}  Qf7 {[%clk 0:00:14]} 31. Qxf7+ {[%clk 0:00:03]}  Kxf7 {[%clk 0:00:15]} 32. Bxa7 {[%clk 0:00:04]}  Ra8 {[%clk 0:00:15]} 33. Bc5 {[%clk 0:00:04]}  Rxa2 {[%clk 0:00:15]} 34. f3 {[%clk 0:00:04]}  Nf6 {[%clk 0:00:15]} 35. Re7+ {[%clk 0:00:05]}  Kg6 {[%clk 0:00:15]} 36. Rxb7 {[%clk 0:00:06]}  Nd5 {[%clk 0:00:13]} 37. Bd4 {[%clk 0:00:04]}  f4 {[%clk 0:00:08]} 38. Rb5 {[%clk 0:00:03]}  Ne3 {[%clk 0:00:07]} 39. Kf2 {[%clk 0:00:03]}  Nf5 {[%clk 0:00:04]} 40. Bc3 {[%clk 0:00:03]}  Ra1 {[%clk 0:00:04]} 41. Ra5 {[%clk 0:00:03]}  Rb1 {[%clk 0:00:03]} 42. Ra6+ {[%clk 0:00:03]}  Kh5 {[%clk 0:00:03]} 43. Ke2 {[%clk 0:00:02]}  Rg1 {[%clk 0:00:03]} 44. Kf2 {[%clk 0:00:02]}  Rb1 {[%clk 0:00:04]} 45. Ke2 {[%clk 0:00:03]}  Rg1 {[%clk 0:00:03]} 46. Kf2 {[%clk 0:00:03]}  Rb1 {[%clk 0:00:04]} 1/2-1/2


[Site "https://www.chess.com"]

[Event "Titled Tuesday Blitz March 21 Early 2023"]
[White "Vasquez Schroeder, Rodrigo"]
[Black "Andreikin, Dmitry"]
[WhiteFideId "3400042"]
[BlackFideId "4158814"]
[WhiteElo "2600"]
[BlackElo "2736"]
[Result "1/2-1/2"]
[Round "08"]
[TimeControl "180+2"]
[Date "2023.03.21"]
[WhiteClock "0:00:21"]
[BlackClock "0:00:04"]

1. e4 {[%clk 0:03:00]}  e5 {[%clk 0:02:58]} 2. Nf3 {[%clk 0:03:00]}  Nc6 {[%clk 0:02:59]} 3. Bb5 {[%clk 0:03:01]}  a6 {[%clk 0:02:58]} 4. Ba4 {[%clk 0:03:01]}  g6 {[%clk 0:02:58]} 5. d4 {[%clk 0:02:57]}  exd4 {[%clk 0:02:57]} 6. Bg5 {[%clk 0:02:57]}  Be7 {[%clk 0:02:57]} 7. Bxe7 {[%clk 0:02:56]}  Qxe7 {[%clk 0:02:58]} 8. Bxc6 {[%clk 0:02:56]}  dxc6 {[%clk 0:02:56]} 9. Qxd4 {[%clk 0:02:57]}  Nf6 {[%clk 0:02:56]} 10. Nc3 {[%clk 0:02:54]}  Bg4 {[%clk 0:02:54]} 11. Nd2 {[%clk 0:02:52]}  Rd8 {[%clk 0:02:51]} 12. Qe3 {[%clk 0:02:52]}  Be6 {[%clk 0:02:48]} 13. h3 {[%clk 0:02:51]}  Qb4 {[%clk 0:02:42]} 14. Rb1 {[%clk 0:02:42]}  O-O {[%clk 0:02:39]} 15. a3 {[%clk 0:02:42]}  Qb6 {[%clk 0:02:24]} 16. Qxb6 {[%clk 0:02:36]}  cxb6 {[%clk 0:02:25]} 17. Ke2 {[%clk 0:02:35]}  b5 {[%clk 0:02:18]} 18. Rhd1 {[%clk 0:02:32]}  a5 {[%clk 0:02:17]} 19. Ke3 {[%clk 0:02:28]}  b4 {[%clk 0:02:11]} 20. axb4 {[%clk 0:02:28]}  axb4 {[%clk 0:02:12]} 21. Ne2 {[%clk 0:02:24]}  Rfe8 {[%clk 0:02:06]} 22. f3 {[%clk 0:02:24]}  Rd7 {[%clk 0:01:48]} 23. Nf1 {[%clk 0:02:17]}  Bc4 {[%clk 0:01:41]} 24. Rxd7 {[%clk 0:02:12]}  Nxd7 {[%clk 0:01:42]} 25. Rd1 {[%clk 0:02:13]}  Nc5 {[%clk 0:01:42]} 26. Nfg3 {[%clk 0:02:00]}  f5 {[%clk 0:01:29]} 27. Rd4 {[%clk 0:01:56]}  Bxe2 {[%clk 0:01:14]} 28. Nxe2 {[%clk 0:01:57]}  fxe4 {[%clk 0:01:12]} 29. fxe4 {[%clk 0:01:53]}  b3 {[%clk 0:01:11]} 30. cxb3 {[%clk 0:01:41]}  Nxb3 {[%clk 0:01:11]} 31. Rb4 {[%clk 0:01:40]}  Nc5 {[%clk 0:01:10]} 32. Nf4 {[%clk 0:01:39]}  b5 {[%clk 0:01:03]} 33. Rd4 {[%clk 0:01:32]}  Kf7 {[%clk 0:00:58]} 34. b4 {[%clk 0:01:31]}  Na6 {[%clk 0:00:58]} 35. Nd3 {[%clk 0:01:28]}  Ke7 {[%clk 0:00:53]} 36. g4 {[%clk 0:01:17]}  Rf8 {[%clk 0:00:48]} 37. Ne5 {[%clk 0:01:17]}  Nb8 {[%clk 0:00:43]} 38. g5 {[%clk 0:01:13]}  Rf1 {[%clk 0:00:41]} 39. Rd3 {[%clk 0:00:57]}  Rh1 {[%clk 0:00:25]} 40. Kf4 {[%clk 0:00:47]}  Rf1+ {[%clk 0:00:25]} 41. Ke3 {[%clk 0:00:47]}  Ke6 {[%clk 0:00:20]} 42. Nf3 {[%clk 0:00:44]}  Rb1 {[%clk 0:00:20]} 43. Rd8 {[%clk 0:00:43]}  Nd7 {[%clk 0:00:20]} 44. Nd4+ {[%clk 0:00:43]}  Kd6 {[%clk 0:00:12]} 45. e5+ {[%clk 0:00:43]}  Ke7 {[%clk 0:00:12]} 46. Nxc6+ {[%clk 0:00:43]}  Ke6 {[%clk 0:00:12]} 47. Nd4+ {[%clk 0:00:31]}  Ke7 {[%clk 0:00:12]} 48. Rh8 {[%clk 0:00:29]}  Nxe5 {[%clk 0:00:07]} 49. Rxh7+ {[%clk 0:00:29]}  Kd6 {[%clk 0:00:07]} 50. Nxb5+ {[%clk 0:00:29]}  Ke6 {[%clk 0:00:08]} 51. Nd4+ {[%clk 0:00:28]}  Kd5 {[%clk 0:00:08]} 52. Nc2 {[%clk 0:00:25]}  Rb3+ {[%clk 0:00:07]} 53. Ke2 {[%clk 0:00:24]}  Rb2 {[%clk 0:00:06]} 54. Kd1 {[%clk 0:00:24]}  Ke4 {[%clk 0:00:04]} 55. Re7 {[%clk 0:00:22]}  Rb1+ {[%clk 0:00:04]} 56. Kd2 {[%clk 0:00:22]}  Rh1 {[%clk 0:00:05]} 57. b5 {[%clk 0:00:21]}  Rxh3 {[%clk 0:00:05]} 58. Nb4 {[%clk 0:00:19]}  Kd4 {[%clk 0:00:02]} 59. Nc6+ {[%clk 0:00:19]}  Nxc6 {[%clk 0:00:03]} 60. bxc6 {[%clk 0:00:20]}  Rh2+ {[%clk 0:00:03]} 61. Kd1 {[%clk 0:00:19]}  Rh3 {[%clk 0:00:01]} 62. c7 {[%clk 0:00:19]}  Rc3 {[%clk 0:00:01]} 63. Rg7 {[%clk 0:00:18]}  Ke5 {[%clk 0:00:01]} 64. Kd2 {[%clk 0:00:18]}  Rc5 {[%clk 0:00:01]} 65. Rd7 {[%clk 0:00:17]}  Ke6 {[%clk 0:00:01]} 66. Rh7 {[%clk 0:00:17]}  Kf5 {[%clk 0:00:01]} 67. Kd3 {[%clk 0:00:17]}  Kxg5 {[%clk 0:00:01]} 68. Kd4 {[%clk 0:00:18]}  Rc1 {[%clk 0:00:01]} 69. Ke5 {[%clk 0:00:19]}  Kg4 {[%clk 0:00:01]} 70. Kd6 {[%clk 0:00:17]}  g5 {[%clk 0:00:01]} 71. Rh8 {[%clk 0:00:18]}  Kf3 {[%clk 0:00:01]} 72. c8=Q {[%clk 0:00:18]}  Rxc8 {[%clk 0:00:01]} 73. Rxc8 {[%clk 0:00:19]}  g4 {[%clk 0:00:02]} 74. Rf8+ {[%clk 0:00:20]}  Ke3 {[%clk 0:00:02]} 75. Ke5 {[%clk 0:00:20]}  g3 {[%clk 0:00:03]} 76. Rg8 {[%clk 0:00:20]}  Kf3 {[%clk 0:00:03]} 77. Rf8+ {[%clk 0:00:20]}  Ke3 {[%clk 0:00:03]} 78. Ra8 {[%clk 0:00:20]}  g2 {[%clk 0:00:03]} 79. Ra3+ {[%clk 0:00:21]}  Kf2 {[%clk 0:00:04]} 80. Ra2+ {[%clk 0:00:21]}  Kg3 {[%clk 0:00:04]} 81. Rxg2+ {[%clk 0:00:21]}  Kxg2 {[%clk 0:00:04]} 1/2-1/2


[Site "https://www.chess.com"]

[Event "Titled Tuesday Blitz March 21 Early 2023"]
[White "Fedoseev, Vladimir"]
[Black "Svane, Frederik"]
[WhiteFideId "24130737"]
[BlackFideId "12923044"]
[WhiteElo "2752"]
[BlackElo "2502"]
[Result "0-1"]
[Round "08"]
[TimeControl "180+2"]
[Date "2023.03.21"]
[WhiteClock "0:00:04"]
[BlackClock "0:00:05"]

1. Nf3 {[%clk 0:02:59]}  d5 {[%clk 0:02:59]} 2. b3 {[%clk 0:02:59]}  Nf6 {[%clk 0:02:58]} 3. Bb2 {[%clk 0:02:59]}  e6 {[%clk 0:02:59]} 4. e3 {[%clk 0:02:59]}  Bd6 {[%clk 0:02:59]} 5. c4 {[%clk 0:02:58]}  O-O {[%clk 0:02:59]} 6. Qc2 {[%clk 0:02:58]}  c5 {[%clk 0:02:55]} 7. g4 {[%clk 0:02:54]}  Nxg4 {[%clk 0:02:32]} 8. Rg1 {[%clk 0:02:54]}  Nf6 {[%clk 0:02:28]} 9. cxd5 {[%clk 0:02:47]}  exd5 {[%clk 0:02:28]} 10. Nc3 {[%clk 0:02:41]}  g6 {[%clk 0:02:25]} 11. Bd3 {[%clk 0:02:21]}  Nc6 {[%clk 0:02:11]} 12. Bxg6 {[%clk 0:01:32]}  fxg6 {[%clk 0:02:12]} 13. Rxg6+ {[%clk 0:01:32]}  hxg6 {[%clk 0:02:05]} 14. Qxg6+ {[%clk 0:01:30]}  Kh8 {[%clk 0:02:05]} 15. Nxd5 {[%clk 0:01:27]}  Be5 {[%clk 0:01:14]} 16. Nxe5 {[%clk 0:01:01]}  Qxd5 {[%clk 0:00:56]} 17. Qh6+ {[%clk 0:00:46]}  Kg8 {[%clk 0:00:46]} 18. Qg5+ {[%clk 0:00:46]}  Kh7 {[%clk 0:00:39]} 19. Qh4+ {[%clk 0:00:40]}  Kg7 {[%clk 0:00:31]} 20. Qg3+ {[%clk 0:00:31]}  Kh7 {[%clk 0:00:15]} 21. Qg6+ {[%clk 0:00:27]}  Kh8 {[%clk 0:00:15]} 22. Nxc6 {[%clk 0:00:20]}  bxc6 {[%clk 0:00:07]} 23. O-O-O {[%clk 0:00:14]}  Qf5 {[%clk 0:00:05]} 24. Qh6+ {[%clk 0:00:09]}  Kg8 {[%clk 0:00:06]} 25. Rg1+ {[%clk 0:00:10]}  Kf7 {[%clk 0:00:06]} 26. e4 {[%clk 0:00:10]}  Qe6 {[%clk 0:00:03]} 27. Rg6 {[%clk 0:00:08]}  Ke8 {[%clk 0:00:03]} 28. Bxf6 {[%clk 0:00:07]}  Qxe4 {[%clk 0:00:03]} 29. Bc3 {[%clk 0:00:07]}  Bf5 {[%clk 0:00:03]} 30. d3 {[%clk 0:00:04]}  Qxd3 {[%clk 0:00:02]} 31. Re6+ {[%clk 0:00:05]}  Bxe6 {[%clk 0:00:03]} 32. Qxe6+ {[%clk 0:00:04]}  Kd8 {[%clk 0:00:03]} 33. Be5 {[%clk 0:00:05]}  Qd5 {[%clk 0:00:02]} 34. Bf6+ {[%clk 0:00:04]}  Rxf6 {[%clk 0:00:02]} 35. Qxf6+ {[%clk 0:00:05]}  Kc7 {[%clk 0:00:03]} 36. Qg7+ {[%clk 0:00:05]}  Kb6 {[%clk 0:00:03]} 37. h4 {[%clk 0:00:04]}  Rd8 {[%clk 0:00:04]} 38. Kb2 {[%clk 0:00:04]}  Qd2+ {[%clk 0:00:04]} 39. Kb1 {[%clk 0:00:04]}  Qd1+ {[%clk 0:00:04]} 40. Kb2 {[%clk 0:00:04]}  Rd2+ {[%clk 0:00:05]} 41. Ka3 {[%clk 0:00:04]}  Qc1+ {[%clk 0:00:05]} 0-1


[Site "https://www.chess.com"]

[Event "Titled Tuesday Blitz March 21 Early 2023"]
[White "Bortnyk, Olexandr"]
[Black "Gharibyan, Mamikon"]
[WhiteFideId "14120828"]
[BlackFideId "13308300"]
[WhiteElo "2734"]
[BlackElo "2445"]
[Result "1-0"]
[Round "08"]
[TimeControl "180+2"]
[Date "2023.03.21"]
[WhiteClock "0:01:10"]
[BlackClock "0:00:04"]

1. d4 {[%clk 0:03:00]}  Nf6 {[%clk 0:02:54]} 2. Nc3 {[%clk 0:03:01]}  d5 {[%clk 0:02:49]} 3. Bf4 {[%clk 0:03:01]}  c5 {[%clk 0:02:49]} 4. e4 {[%clk 0:03:01]}  cxd4 {[%clk 0:02:45]} 5. Qxd4 {[%clk 0:03:02]}  Nc6 {[%clk 0:02:44]} 6. Bb5 {[%clk 0:03:02]}  Bd7 {[%clk 0:02:44]} 7. Bxc6 {[%clk 0:03:03]}  Bxc6 {[%clk 0:02:45]} 8. e5 {[%clk 0:03:04]}  Ne4 {[%clk 0:02:39]} 9. e6 {[%clk 0:03:02]}  fxe6 {[%clk 0:02:16]} 10. Nf3 {[%clk 0:02:59]}  Qb6 {[%clk 0:02:12]} 11. Qxb6 {[%clk 0:02:19]}  axb6 {[%clk 0:02:10]} 12. Nd4 {[%clk 0:02:19]}  Kf7 {[%clk 0:01:44]} 13. Be5 {[%clk 0:02:17]}  Rg8 {[%clk 0:01:42]} 14. Nxe4 {[%clk 0:02:00]}  dxe4 {[%clk 0:01:43]} 15. O-O {[%clk 0:02:00]}  g5 {[%clk 0:01:25]} 16. Rfe1 {[%clk 0:02:00]}  Bg7 {[%clk 0:01:06]} 17. Bxg7 {[%clk 0:01:57]}  Rxg7 {[%clk 0:01:07]} 18. a3 {[%clk 0:01:50]}  Bd5 {[%clk 0:01:01]} 19. Re3 {[%clk 0:01:46]}  e5 {[%clk 0:00:59]} 20. Nf5 {[%clk 0:01:42]}  Rg6 {[%clk 0:00:58]} 21. Ng3 {[%clk 0:01:42]}  Rc6 {[%clk 0:00:49]} 22. c3 {[%clk 0:01:42]}  Ra4 {[%clk 0:00:41]} 23. Rae1 {[%clk 0:01:38]}  Rd6 {[%clk 0:00:35]} 24. h3 {[%clk 0:01:35]}  Kf6 {[%clk 0:00:13]} 25. R3e2 {[%clk 0:01:28]}  Kg6 {[%clk 0:00:11]} 26. Nxe4 {[%clk 0:01:29]}  Bxe4 {[%clk 0:00:11]} 27. Rxe4 {[%clk 0:01:29]}  Rxe4 {[%clk 0:00:10]} 28. Rxe4 {[%clk 0:01:30]}  Kf5 {[%clk 0:00:09]} 29. f3 {[%clk 0:01:31]}  Rd1+ {[%clk 0:00:08]} 30. Kh2 {[%clk 0:01:31]}  h5 {[%clk 0:00:08]} 31. Rb4 {[%clk 0:01:29]}  Rd6 {[%clk 0:00:07]} 32. g4+ {[%clk 0:01:23]}  hxg4 {[%clk 0:00:05]} 33. hxg4+ {[%clk 0:01:23]}  Ke6 {[%clk 0:00:04]} 34. Kg3 {[%clk 0:01:24]}  Kd5 {[%clk 0:00:02]} 35. Kf2 {[%clk 0:01:22]}  Ke6 {[%clk 0:00:02]} 36. Ke3 {[%clk 0:01:23]}  Kd5 {[%clk 0:00:02]} 37. Rb5+ {[%clk 0:01:22]}  Ke6 {[%clk 0:00:02]} 38. Ke4 {[%clk 0:01:23]}  Kf6 {[%clk 0:00:02]} 39. Rxe5 {[%clk 0:01:22]}  e6 {[%clk 0:00:03]} 40. Rb5 {[%clk 0:01:22]}  Rc6 {[%clk 0:00:03]} 41. Rb4 {[%clk 0:01:13]}  Rd6 {[%clk 0:00:04]} 42. a4 {[%clk 0:01:12]}  Rc6 {[%clk 0:00:04]} 43. Rd4 {[%clk 0:01:13]}  Rc5 {[%clk 0:00:03]} 44. Kd3 {[%clk 0:01:11]}  b5 {[%clk 0:00:03]} 45. a5 {[%clk 0:01:10]}  Rc7 {[%clk 0:00:03]} 46. Rd6 {[%clk 0:01:09]}  Ke5 {[%clk 0:00:03]} 47. Rb6 {[%clk 0:01:10]}  Rd7+ {[%clk 0:00:04]} 48. Ke3 {[%clk 0:01:10]} 1-0


[Site "https://www.chess.com"]

[Event "Titled Tuesday Blitz March 21 Early 2023"]
[White "Lenderman, Aleksandr"]
[Black "Jones, Gawain C B"]
[WhiteFideId "2021285"]
[BlackFideId "409561"]
[WhiteElo "2607"]
[BlackElo "2645"]
[Result "0-1"]
[Round "08"]
[TimeControl "180+2"]
[Date "2023.03.21"]
[WhiteClock "0:02:13"]
[BlackClock "0:01:11"]

1. Nf3 {[%clk 0:03:00]}  Nf6 {[%clk 0:02:59]} 2. c4 {[%clk 0:03:00]}  g6 {[%clk 0:03:00]} 3. Nc3 {[%clk 0:03:00]}  Bg7 {[%clk 0:03:00]} 4. e4 {[%clk 0:02:59]}  d6 {[%clk 0:03:01]} 5. d4 {[%clk 0:02:59]}  O-O {[%clk 0:03:02]} 6. Be2 {[%clk 0:02:59]}  Nbd7 {[%clk 0:03:01]} 7. O-O {[%clk 0:02:59]}  e5 {[%clk 0:03:01]} 8. d5 {[%clk 0:02:56]}  Nc5 {[%clk 0:03:01]} 9. Qc2 {[%clk 0:02:55]}  a5 {[%clk 0:03:01]} 10. Be3 {[%clk 0:02:55]}  Ne8 {[%clk 0:02:59]} 11. a3 {[%clk 0:02:53]}  f5 {[%clk 0:02:51]} 12. b4 {[%clk 0:02:48]}  Nxe4 {[%clk 0:02:28]} 13. Nxe4 {[%clk 0:02:47]}  fxe4 {[%clk 0:02:29]} 14. Nd2 {[%clk 0:02:39]}  Nf6 {[%clk 0:02:26]} 15. Nxe4 {[%clk 0:02:38]}  Nxe4 {[%clk 0:02:25]} 16. Qxe4 {[%clk 0:02:38]}  Bf5 {[%clk 0:02:23]} 17. Qf3 {[%clk 0:02:38]}  e4 {[%clk 0:02:07]} 18. Qg3 {[%clk 0:02:38]}  Be5 {[%clk 0:01:51]} 19. Bf4 {[%clk 0:02:34]}  Bxa1 {[%clk 0:01:51]} 20. Rxa1 {[%clk 0:02:32]}  axb4 {[%clk 0:01:51]} 21. c5 {[%clk 0:02:27]}  Qf6 {[%clk 0:01:48]} 22. Rf1 {[%clk 0:02:20]}  bxa3 {[%clk 0:01:22]} 23. cxd6 {[%clk 0:02:14]}  cxd6 {[%clk 0:01:15]} 24. Bxd6 {[%clk 0:02:15]}  a2 {[%clk 0:01:15]} 25. Be5 {[%clk 0:02:14]}  a1=Q {[%clk 0:01:13]} 26. Bxf6 {[%clk 0:02:13]}  Qxf6 {[%clk 0:01:11]} 0-1


[Site "https://www.chess.com"]

[Event "Titled Tuesday Blitz March 21 Early 2023"]
[White "Idani, Pouya"]
[Black "Esipenko, Andrey"]
[WhiteFideId "12510130"]
[BlackFideId "24175439"]
[WhiteElo "2574"]
[BlackElo "2615"]
[Result "0-1"]
[Round "08"]
[TimeControl "180+2"]
[Date "2023.03.21"]
[WhiteClock "0:00:01"]
[BlackClock "0:00:09"]

1. e4 {[%clk 0:02:54]}  e5 {[%clk 0:02:57]} 2. Nf3 {[%clk 0:02:53]}  Nf6 {[%clk 0:02:57]} 3. Nxe5 {[%clk 0:02:48]}  d6 {[%clk 0:02:58]} 4. Nf3 {[%clk 0:02:48]}  Nxe4 {[%clk 0:02:58]} 5. d3 {[%clk 0:02:48]}  Nf6 {[%clk 0:02:58]} 6. d4 {[%clk 0:02:49]}  g6 {[%clk 0:02:59]} 7. Bd3 {[%clk 0:02:44]}  Bg7 {[%clk 0:03:00]} 8. O-O {[%clk 0:02:44]}  O-O {[%clk 0:03:00]} 9. h3 {[%clk 0:02:43]}  c5 {[%clk 0:02:59]} 10. Nc3 {[%clk 0:02:34]}  Nc6 {[%clk 0:02:59]} 11. dxc5 {[%clk 0:02:34]}  dxc5 {[%clk 0:03:00]} 12. a3 {[%clk 0:02:35]}  h6 {[%clk 0:02:41]} 13. Be3 {[%clk 0:02:33]}  b6 {[%clk 0:02:40]} 14. Qd2 {[%clk 0:02:32]}  g5 {[%clk 0:02:35]} 15. Rad1 {[%clk 0:02:28]}  Be6 {[%clk 0:02:33]} 16. Rfe1 {[%clk 0:02:16]}  Re8 {[%clk 0:02:22]} 17. Bb5 {[%clk 0:02:00]}  Qxd2 {[%clk 0:02:19]} 18. Rxd2 {[%clk 0:02:01]}  Rec8 {[%clk 0:02:18]} 19. Ba6 {[%clk 0:01:58]}  Rc7 {[%clk 0:02:16]} 20. Red1 {[%clk 0:01:56]}  Rf8 {[%clk 0:01:47]} 21. Bf1 {[%clk 0:01:31]}  Rd7 {[%clk 0:01:40]} 22. Rxd7 {[%clk 0:01:26]}  Nxd7 {[%clk 0:01:41]} 23. Bb5 {[%clk 0:01:24]}  Nde5 {[%clk 0:01:41]} 24. Nxe5 {[%clk 0:01:15]}  Nxe5 {[%clk 0:01:41]} 25. f4 {[%clk 0:01:16]}  gxf4 {[%clk 0:01:37]} 26. Bxf4 {[%clk 0:01:17]}  Rc8 {[%clk 0:01:16]} 27. Nd5 {[%clk 0:01:07]}  Ng6 {[%clk 0:01:09]} 28. Bc1 {[%clk 0:00:57]}  Bd4+ {[%clk 0:01:08]} 29. Ne3 {[%clk 0:00:57]}  h5 {[%clk 0:00:55]} 30. Kf1 {[%clk 0:00:54]}  Kg7 {[%clk 0:00:53]} 31. c3 {[%clk 0:00:52]}  Be5 {[%clk 0:00:53]} 32. Bc4 {[%clk 0:00:50]}  Re8 {[%clk 0:00:49]} 33. Bxe6 {[%clk 0:00:44]}  Rxe6 {[%clk 0:00:47]} 34. Rd7 {[%clk 0:00:42]}  Bf4 {[%clk 0:00:44]} 35. Kf2 {[%clk 0:00:33]}  Ne5 {[%clk 0:00:44]} 36. Rd5 {[%clk 0:00:24]}  Kg6 {[%clk 0:00:44]} 37. g3 {[%clk 0:00:21]}  Bg5 {[%clk 0:00:44]} 38. b4 {[%clk 0:00:18]}  c4 {[%clk 0:00:33]} 39. Bd2 {[%clk 0:00:14]}  f6 {[%clk 0:00:34]} 40. Rd8 {[%clk 0:00:10]}  b5 {[%clk 0:00:32]} 41. Ke2 {[%clk 0:00:08]}  Ra6 {[%clk 0:00:32]} 42. h4 {[%clk 0:00:05]}  Bxe3 {[%clk 0:00:30]} 43. Bxe3 {[%clk 0:00:06]}  Rxa3 {[%clk 0:00:31]} 44. Bd4 {[%clk 0:00:06]}  Ng4 {[%clk 0:00:30]} 45. Rg8+ {[%clk 0:00:05]}  Kf5 {[%clk 0:00:30]} 46. Rc8 {[%clk 0:00:05]}  Ra2+ {[%clk 0:00:27]} 47. Kf3 {[%clk 0:00:04]}  Nh2+ {[%clk 0:00:24]} 48. Ke3 {[%clk 0:00:04]}  a6 {[%clk 0:00:21]} 49. Rc5+ {[%clk 0:00:03]}  Kg4 {[%clk 0:00:18]} 50. Ke4 {[%clk 0:00:03]}  Nf1 {[%clk 0:00:18]} 51. Bxf6 {[%clk 0:00:03]}  Nxg3+ {[%clk 0:00:19]} 52. Kd5 {[%clk 0:00:04]}  Nf5 {[%clk 0:00:18]} 53. Ke6 {[%clk 0:00:04]}  Re2+ {[%clk 0:00:12]} 54. Kf7 {[%clk 0:00:05]}  Nd6+ {[%clk 0:00:13]} 55. Kg6 {[%clk 0:00:05]}  Ne4 {[%clk 0:00:13]} 56. Rc6 {[%clk 0:00:05]}  Nxf6 {[%clk 0:00:13]} 57. Rxf6 {[%clk 0:00:05]}  Ra2 {[%clk 0:00:10]} 58. Rf5 {[%clk 0:00:04]}  Rd2 {[%clk 0:00:09]} 59. Rg5+ {[%clk 0:00:03]}  Kxh4 {[%clk 0:00:08]} 60. Rxh5+ {[%clk 0:00:03]}  Kg4 {[%clk 0:00:09]} 61. Rc5 {[%clk 0:00:03]}  Rd3 {[%clk 0:00:07]} 62. Rc6 {[%clk 0:00:03]}  Rxc3 {[%clk 0:00:08]} 63. Rxa6 {[%clk 0:00:03]}  Rb3 {[%clk 0:00:09]} 64. Kf6 {[%clk 0:00:02]}  Kf4 {[%clk 0:00:09]} 65. Ke6 {[%clk 0:00:01]}  Ke4 {[%clk 0:00:09]} 0-1


[Site "https://www.chess.com"]

[Event "Titled Tuesday Blitz March 21 Early 2023"]
[White "Kamsky, Gata"]
[Black "Postny, Evgeny"]
[WhiteFideId "2000024"]
[BlackFideId "2804344"]
[WhiteElo "2666"]
[BlackElo "2509"]
[Result "1-0"]
[Round "08"]
[TimeControl "180+2"]
[Date "2023.03.21"]
[WhiteClock "0:00:27"]
[BlackClock "0:00:08"]

1. d4 {[%clk 0:03:00]}  d5 {[%clk 0:02:59]} 2. Bf4 {[%clk 0:02:59]}  Nf6 {[%clk 0:02:59]} 3. e3 {[%clk 0:02:59]}  e6 {[%clk 0:03:00]} 4. Nd2 {[%clk 0:02:56]}  Bd6 {[%clk 0:03:00]} 5. Ngf3 {[%clk 0:02:53]}  Bxf4 {[%clk 0:02:58]} 6. exf4 {[%clk 0:02:53]}  c5 {[%clk 0:02:58]} 7. dxc5 {[%clk 0:02:48]}  Qc7 {[%clk 0:02:57]} 8. g3 {[%clk 0:02:48]}  Qxc5 {[%clk 0:02:57]} 9. c3 {[%clk 0:02:47]}  Nc6 {[%clk 0:02:54]} 10. Bd3 {[%clk 0:02:44]}  O-O {[%clk 0:02:50]} 11. O-O {[%clk 0:02:43]}  a5 {[%clk 0:02:43]} 12. Nb3 {[%clk 0:02:37]}  Qd6 {[%clk 0:02:38]} 13. Nbd4 {[%clk 0:02:34]}  b6 {[%clk 0:02:34]} 14. Re1 {[%clk 0:02:34]}  Ba6 {[%clk 0:02:31]} 15. Bc2 {[%clk 0:02:34]}  Nxd4 {[%clk 0:02:22]} 16. Nxd4 {[%clk 0:02:33]}  Rfe8 {[%clk 0:02:16]} 17. a4 {[%clk 0:02:31]}  Rad8 {[%clk 0:02:08]} 18. Qf3 {[%clk 0:02:25]}  g6 {[%clk 0:02:01]} 19. h4 {[%clk 0:02:18]}  Kg7 {[%clk 0:01:56]} 20. Re3 {[%clk 0:02:16]}  Bb7 {[%clk 0:01:30]} 21. Rae1 {[%clk 0:02:13]}  Ne4 {[%clk 0:01:30]} 22. h5 {[%clk 0:02:05]}  Qe7 {[%clk 0:01:10]} 23. Bd3 {[%clk 0:01:32]}  Qf6 {[%clk 0:01:08]} 24. Bb5 {[%clk 0:01:24]}  Rf8 {[%clk 0:01:02]} 25. R3e2 {[%clk 0:01:15]}  g5 {[%clk 0:00:54]} 26. fxg5 {[%clk 0:01:14]}  Qxg5 {[%clk 0:00:54]} 27. Qe3 {[%clk 0:00:41]}  Qxh5 {[%clk 0:00:50]} 28. f3 {[%clk 0:00:42]}  Nd6 {[%clk 0:00:46]} 29. Rh2 {[%clk 0:00:41]}  Qg6 {[%clk 0:00:44]} 30. Qe5+ {[%clk 0:00:36]}  Kg8 {[%clk 0:00:29]} 31. Rh4 {[%clk 0:00:36]}  f6 {[%clk 0:00:23]} 32. Qxe6+ {[%clk 0:00:36]}  Qf7 {[%clk 0:00:23]} 33. Qg4+ {[%clk 0:00:33]}  Kh8 {[%clk 0:00:22]} 34. Bd3 {[%clk 0:00:32]}  f5 {[%clk 0:00:19]} 35. Qf4 {[%clk 0:00:33]}  Bc8 {[%clk 0:00:15]} 36. Kf2 {[%clk 0:00:32]}  Rfe8 {[%clk 0:00:11]} 37. Rxe8+ {[%clk 0:00:30]}  Qxe8 {[%clk 0:00:08]} 38. Qh6 {[%clk 0:00:27]}  Qe7 {[%clk 0:00:08]} 39. Nc6 {[%clk 0:00:27]} 1-0


[Site "https://www.chess.com"]